bitfinex-derivatives/quotes_BTCF0:USTF0_20241120
["timestamp","ask_amount","ask_price","bid_price","bid_amount"]
[1732132687307,0.03214928,93983.0,93982.0,1.55314]
[1732132688290,0.03219974,93983.0,93982.0,1.55314]
[1732132689002,0.01237722,93983.0,93982.0,1.55314]
[1732132689299,0.03212054,93983.0,93982.0,1.55314]
[1732132690193,0.01241819,93983.0,93982.0,1.5]
[1732132690400,0.0322873,93983.0,93982.0,1.55314]
[1732132690793,0.3608,93984.0,93983.0,0.053139]
[1732132691104,0.39293717,93984.0,93983.0,0.053139]
[1732132691303,0.39293717,93984.0,93983.0,0.169499]
[1732132692887,0.3608,93984.0,93983.0,0.169499]
[1732132693087,0.39288916,93984.0,93983.0,0.169499]
[1732132694808,0.39288916,93984.0,93979.0,0.05314]
[1732132694809,0.053142,93980.0,93979.0,0.05314]
[1732132694989,0.053142,93980.0,93964.0,0.00159594]
[1732132694990,0.053146,93975.0,93974.0,0.053143]
[1732132695192,0.42628798,93975.0,93966.0,0.11636]
[1732132695399,0.3608,93967.0,93966.0,0.169509]
[1732132695599,0.37312876,93967.0,93966.0,0.169509]
[1732132696002,0.37312876,93967.0,93966.0,0.19009601]
[1732132696493,0.36208,93982.0,93981.0,0.053141]
[1732132696692,0.39305963,93982.0,93981.0,0.15497019]
[1732132699103,0.44619963,93982.0,93981.0,0.15497019]
[1732132699298,0.053143,93976.0,93975.0,0.413943]
[1732132699603,0.08540263,93976.0,93975.0,0.413943]
[1732132700030,0.08540263,93976.0,93967.0,0.10182919]
[1732132700031,0.03225963,93976.0,93967.0,0.10182919]
[1732132700213,0.053147,93970.0,93969.0,0.053147]
[1732132700600,0.06561957,93970.0,93969.0,0.053147]
[1732132700915,0.053147,93970.0,93969.0,0.053147]
[1732132701405,0.0656516,93970.0,93969.0,0.053147]
[1732132703907,0.0656516,93970.0,93946.0,0.08566]
[1732132703908,0.053153,93960.0,93959.0,0.053153]
[1732132704114,0.0656576,93960.0,93959.0,0.053153]
[1732132704299,0.0125046,93960.0,93955.0,0.11604]
[1732132704616,0.0125046,93959.0,93955.0,0.11604]
[1732132704807,0.053153,93960.0,93959.0,0.053153]
[1732132704998,0.01248292,93960.0,93959.0,0.053153]
[1732132705407,0.3608,93982.0,93976.0,0.053143]
[1732132705603,0.053141,93981.0,93980.0,0.053141]
[1732132706700,0.36216,93982.0,93973.0,1.50056]
[1732132706701,0.4153,93982.0,93981.0,0.053141]
[1732132706906,0.42643245,93982.0,93981.0,0.053141]
[1732132707106,0.42643288,93982.0,93981.0,0.053141]
[1732132708011,0.37329288,93982.0,93981.0,0.053141]
[1732132708601,0.42643288,93982.0,93981.0,0.053141]
[1732132709804,0.053144,93979.0,93978.0,0.053142]
[1732132710009,0.06563688,93979.0,93978.0,0.053142]
[1732132710202,0.053144,93979.0,93978.0,0.053142]
[1732132714116,0.36208,93982.0,93981.0,0.053141]
[1732132714412,0.37335236,93982.0,93981.0,0.053141]
[1732132714619,0.3608,93982.0,93981.0,0.053141]
[1732132716113,0.3608,93982.0,93973.0,1.50056]
[1732132716302,0.46262919,93974.0,93953.0,0.11604]
[1732132716507,0.46262919,93974.0,93956.0,0.413955]
[1732132716508,0.053154,93958.0,93956.0,0.413955]
[1732132716706,0.053154,93958.0,93956.0,0.3608]
[1732132716906,0.053155,93955.0,93950.0,0.02055996]
[1732132717112,0.053158,93951.0,93950.0,0.02055996]
[1732132717323,0.10182919,93951.0,93937.0,0.053165]
[1732132717613,0.3608,93946.0,93929.0,0.21786919]
[1732132717821,0.053163,93941.0,93938.0,0.413965]
[1732132718313,0.053163,93941.0,93939.0,0.053164]
[1732132719603,0.053163,93941.0,93938.0,0.3608]
[1732132720309,0.413963,93941.0,93939.0,0.053164]
[1732132720507,0.413963,93941.0,93929.0,0.11604]
[1732132720805,0.3608,93941.0,93940.0,0.05324107]
[1732132721008,0.3608,93949.0,93941.0,0.053163]
[1732132721208,0.3608,93949.0,93948.0,0.053159]
[1732132721912,0.36208,93959.0,93958.0,0.053154]
[1732132722116,0.3608,93959.0,93958.0,0.15498319]
[1732132722819,0.3608,93969.0,93958.0,0.15498319]
[1732132722820,0.3608,93969.0,93968.0,0.053148]
[1732132727621,0.413947,93969.0,93968.0,0.053148]
[1732132728011,0.3608,93969.0,93968.0,0.053148]
[1732132731015,0.413947,93969.0,93968.0,0.053148]
[1732132731218,0.42638148,93969.0,93968.0,0.053148]
[1732132731719,0.37323448,93969.0,93968.0,0.053148]
[1732132732112,0.3608,93969.0,93968.0,0.053148]
[1732132734422,0.413947,93969.0,93968.0,0.053148]
[1732132736825,0.3608,93969.0,93968.0,0.053148]
[1732132737334,0.43591854,93983.0,93982.0,0.05314]
[1732132737515,0.44707226,93983.0,93982.0,0.05314]
[1732132737921,0.37323372,93983.0,93982.0,0.05314]
[1732132738231,0.3608,93983.0,93982.0,0.05314]
[1732132740725,0.413939,93983.0,93982.0,0.05314]
[1732132741239,0.3608,93983.0,93982.0,0.05314]
[1732132746243,0.37342068,93983.0,93982.0,0.05314]
[1732132746625,0.3608,93983.0,93982.0,0.05314]
[1732132746946,0.3608,93988.0,93987.0,0.053137]
[1732132747136,0.3734499,93988.0,93987.0,0.053137]
[1732132748038,0.4265869,93988.0,93987.0,0.053137]
[1732132749252,0.413937,93988.0,93987.0,0.053137]
[1732132750152,0.42665817,93988.0,93987.0,0.053137]
[1732132750353,0.44702103,93988.0,93987.0,0.053137]
[1732132750657,0.42665817,93988.0,93987.0,0.053137]
[1732132750949,0.45972985,93988.0,93987.0,0.053137]
[1732132751348,0.45972985,93988.0,93972.0,0.38165402]
[1732132751349,0.053144,93976.0,93975.0,0.053143]
[1732132751542,0.06587071,93976.0,93975.0,0.053143]
[1732132752052,0.06583992,93976.0,93975.0,0.053143]
[1732132753657,0.05315,93966.0,93965.0,0.053148]
[1732132753844,0.053147,93971.0,93970.0,0.053145]
[1732132754043,0.37352547,93971.0,93970.0,0.053145]
[1732132754244,0.3608,93971.0,93970.0,0.053145]
[1732132754441,0.3608,93980.0,93979.0,0.053142]
[1732132754740,0.0313,93989.0,93988.0,0.053137]
[1732132754947,0.06440391,93989.0,93988.0,0.053137]
[1732132755162,0.11753991,93989.0,93988.0,0.053137]
[1732132756773,0.03310391,93989.0,93988.0,0.053137]
[1732132756980,0.01273227,93989.0,93988.0,0.15496619]
[1732132757164,0.01273227,93989.0,93988.0,0.17535501]
[1732132757360,0.00416186,93991.0,93990.0,0.053135]
[1732132757667,0.01696298,93991.0,93990.0,0.053135]
[1732132759172,0.00416186,93991.0,93990.0,0.053135]
[1732132761266,0.05729686,93991.0,93990.0,0.053135]
[1732132762179,0.01693798,93991.0,93990.0,0.053135]
[1732132762480,0.00416186,93991.0,93990.0,0.053135]
[1732132763667,0.00416186,93991.0,93990.0,0.168335]
[1732132765174,0.00416186,93991.0,93990.0,1.668335]
[1732132768880,0.00416186,93991.0,93990.0,1.6895207]
[1732132769379,0.00416186,93991.0,93990.0,1.79134989]
[1732132772185,0.00416186,93991.0,93990.0,1.6895207]
[1732132772382,0.00416186,93991.0,93990.0,0.29134989]
[1732132772679,0.00416186,93991.0,93990.0,0.168335]
[1732132772985,0.00416186,93991.0,93990.0,1.668335]
[1732132773181,0.00416186,93991.0,93990.0,1.553135]
[1732132773384,0.00416186,93991.0,93990.0,0.168335]
[1732132773684,0.00416186,93991.0,93990.0,0.27016419]
[1732132774077,0.00416186,93991.0,93990.0,0.053135]
[1732132774277,0.00416186,93991.0,93990.0,0.15496419]
[1732132775686,0.00416186,93991.0,93990.0,0.27016419]
[1732132776773,0.00416186,93991.0,93990.0,0.63096419]
[1732132776986,0.00397891,93996.0,93995.0,0.053133]
[1732132777192,0.00397891,93996.0,93995.0,0.413933]
[1732132777669,0.00397891,93996.0,93995.0,1.913933]
[1732132777873,0.10655206,94000.0,93995.0,2.33492219]
[1732132778083,0.10655206,94000.0,93999.0,0.05313]
[1732132779571,0.10655206,94000.0,93999.0,0.37229]
[1732132782882,0.10655206,94000.0,93999.0,0.39299223]
[1732132787692,0.10655206,94000.0,93999.0,0.07383223]
[1732132789892,0.10655206,94000.0,93999.0,0.18855223]
[1732132797295,0.08721373,94000.0,93999.0,0.18855223]
[1732132797684,0.0705842,94000.0,93999.0,0.18855223]
[1732132798091,2e-07,94000.0,93999.0,0.18855223]
[1732132799288,0.00750821,94005.0,94004.0,0.053128]
[1732132799501,0.00750821,94005.0,94004.0,0.51575719]
[1732132800301,0.00750821,94005.0,94004.0,2.01575719]
[1732132804507,0.00750821,94005.0,94004.0,2.13047719]
[1732132806495,0.00750821,94005.0,94004.0,2.01575719]
[1732132806892,0.00750821,94005.0,94004.0,2.13047719]
[1732132808904,0.00750821,94005.0,94004.0,2.01575719]
[1732132809212,0.00750821,94005.0,94004.0,2.028648]
[1732132809405,0.00750821,94005.0,94004.0,2.13047719]
[1732132813003,0.00750821,94005.0,94004.0,2.24406728]
[1732132813501,0.00750821,94005.0,94004.0,2.12934728]
[1732132813704,0.00750821,94005.0,94004.0,2.24406728]
[1732132814207,0.00750821,94005.0,94004.0,2.13047719]
[1732132819413,0.00733961,94014.0,94013.0,0.053122]
[1732132819602,0.00733961,94014.0,94013.0,0.51575119]
[1732132820000,0.00733961,94014.0,94013.0,0.62934128]
[1732132820405,0.0030964,94032.0,94031.0,0.053112]
[1732132820616,0.0030964,94032.0,94031.0,0.62998119]
[1732132820818,0.01686044,94032.0,94031.0,0.62998119]
[1732132821005,0.0030964,94032.0,94031.0,0.62998119]
[1732132821826,0.01686035,94032.0,94031.0,0.62998119]
[1732132824209,0.01672423,94032.0,94031.0,0.528152]
[1732132824806,0.06983623,94032.0,94031.0,0.167352]
[1732132825515,0.06988532,94032.0,94031.0,0.167352]
[1732132826016,0.01677332,94032.0,94031.0,0.26918119]
[1732132826525,0.0030964,94032.0,94031.0,0.26918119]
[1732132827711,0.0030964,94032.0,94031.0,1.76918119]
[1732132828117,0.0030964,94032.0,94031.0,1.667352]
[1732132828517,0.0030964,94032.0,94031.0,1.76918119]
[1732132830413,0.0030964,94032.0,94031.0,1.667352]
[1732132830731,0.0030964,94032.0,94031.0,1.76918119]
[1732132832523,0.00951453,94033.0,94031.0,1.76918119]
[1732132832524,9.3e-07,94033.0,94032.0,0.053112]
[1732132833132,9.3e-07,94033.0,94032.0,1.553112]
[1732132834219,9.3e-07,94033.0,94032.0,1.65494119]
[1732132836523,0.0109705,94038.0,94037.0,0.053109]
[1732132836725,0.0109705,94038.0,94037.0,0.413909]
[1732132837128,0.0316,94056.0,94037.0,0.413909]
[1732132837314,0.0316,94056.0,94042.0,0.51573519]
[1732132837937,0.0316,94056.0,94042.0,1.9912012]
[1732132838122,0.0316,94056.0,94042.0,2.1054412]
[1732132839534,0.01495737,94043.0,94042.0,2.1054412]
[1732132839731,0.01495737,94043.0,94042.0,2.1054012]
[1732132840523,0.01495737,94043.0,94042.0,1.9912012]
[1732132840922,0.01495737,94043.0,94042.0,1.8608]
[1732132841131,0.04795737,94043.0,94042.0,1.8608]
[1732132841837,0.04795737,94043.0,94042.0,0.3608]
[1732132842934,0.06231268,94043.0,94042.0,0.475]
[1732132843122,0.06231268,94043.0,94042.0,0.3608]
[1732132843532,0.11541868,94043.0,94042.0,0.3608]
[1732132844133,0.06231268,94043.0,94042.0,0.413906]
[1732132844428,0.06234436,94043.0,94042.0,0.413906]
[1732132844634,0.04795737,94043.0,94042.0,0.413906]
[1732132845120,0.04795737,94043.0,94042.0,0.51573519]
[1732132845827,0.04795737,94043.0,94042.0,0.3608]
[1732132846023,0.05311,94035.0,94034.0,0.05311]
[1732132846230,0.05311,94035.0,94030.0,0.053113]
[1732132846231,0.053113,94031.0,94030.0,0.053113]
[1732132846735,0.06761752,94031.0,94030.0,0.053113]
[1732132846937,0.053116,94026.0,94025.0,0.053116]
[1732132847141,0.053116,94025.0,94024.0,0.00056]
[1732132847434,0.053119,94019.0,94017.0,0.05312]
[1732132847836,0.01453538,94018.0,94017.0,0.05312]
[1732132848028,0.01453538,94018.0,94014.0,0.3608]
[1732132848235,0.053122,94014.0,94012.0,0.00224371]
[1732132848446,0.04593538,94013.0,94004.0,0.11424]
[1732132848627,0.3608,94006.0,94004.0,0.11424]
[1732132848825,0.3608,94006.0,93999.0,0.02015441]
[1732132849039,0.45898371,94005.0,93991.0,0.11376]
[1732132849341,0.03799452,94004.0,93993.0,0.10182919]
[1732132849554,0.38152069,94006.0,94000.0,0.10182919]
[1732132849555,0.014477,94003.0,94000.0,0.10182919]
[1732132849834,0.053124,94010.0,94009.0,0.053125]
[1732132850042,0.06768286,94010.0,94009.0,0.053125]
[1732132850534,0.01455886,94010.0,94009.0,0.053125]
[1732132851228,8.303e-05,94010.0,94009.0,0.053125]
[1732132851421,0.03766142,94010.0,94009.0,0.053125]
[1732132851740,0.03766142,94010.0,94009.0,0.07346955]
[1732132852128,0.03766142,94010.0,94009.0,0.10346955]
[1732132852530,0.01453626,94010.0,94009.0,0.21726955]
[1732132852841,0.0374738,94010.0,94009.0,0.053125]
[1732132853042,0.4513978,94010.0,94009.0,0.053125]
[1732132853229,0.053129,94004.0,94003.0,0.053128]
[1732132853424,0.09051977,94004.0,94003.0,0.053128]
[1732132853644,0.053131,93998.0,93997.0,0.060571]
[1732132853835,0.09052177,93998.0,93997.0,0.060571]
[1732132854033,0.09052177,93998.0,93997.0,0.053131]
[1732132854229,0.12152177,93998.0,93997.0,0.053131]
[1732132854432,0.12152177,93998.0,93994.0,0.1138]
[1732132854629,0.12152177,93998.0,93990.0,0.3608]
[1732132854630,0.053134,93994.0,93993.0,0.053133]
[1732132854834,0.09052477,93994.0,93993.0,0.053133]
[1732132855543,0.01445323,93994.0,93993.0,0.053133]
[1732132855860,0.09067278,93994.0,93993.0,0.053133]
[1732132856144,0.06873978,93994.0,93990.0,0.3608]
[1732132856455,0.06873978,93994.0,93985.0,1.60246919]
[1732132856456,0.053135,93991.0,93985.0,1.50064]
[1732132856642,0.3608,93986.0,93976.0,0.1138]
[1732132856834,0.413942,93978.0,93977.0,0.053143]
[1732132857030,0.42839523,93978.0,93977.0,0.053143]
[1732132857232,0.053143,93977.0,93976.0,1.52064535]
[1732132857429,0.09779009,93977.0,93976.0,1.5]
[1732132857635,0.09779009,93977.0,93976.0,0.053143]
[1732132857848,0.06776315,93977.0,93976.0,0.053143]
[1732132858230,0.03756315,93977.0,93976.0,0.053143]
[1732132858629,0.03756315,93977.0,93976.0,0.166943]
[1732132858942,0.01444709,93977.0,93976.0,0.166943]
[1732132859143,0.01444709,93977.0,93976.0,0.527743]
[1732132859539,0.3608,93986.0,93985.0,0.053138]
[1732132859743,0.01446614,93986.0,93985.0,0.62956719]
[1732132859944,0.3608,93992.0,93991.0,0.053135]
[1732132860150,0.3608,93992.0,93985.0,0.62956719]
[1732132860151,0.37526555,93992.0,93986.0,0.0318]
[1732132860449,0.053136,93990.0,93985.0,0.1138]
[1732132860645,0.03787799,93989.0,93987.0,0.053137]
[1732132860837,0.03787799,93988.0,93982.0,0.1138]
[1732132861145,0.3608,93983.0,93982.0,0.16694]
[1732132861344,0.39867799,93983.0,93982.0,0.05314]
[1732132861650,0.39867799,93983.0,93979.0,0.1138]
[1732132861852,0.10182919,93980.0,93978.0,0.00056]
[1732132862141,0.053143,93976.0,93975.0,0.00159602]
[1732132862449,0.09102099,93976.0,93975.0,0.00159602]
[1732132862641,0.09766408,93976.0,93975.0,0.00159602]
[1732132862953,0.41690408,93976.0,93975.0,0.00159602]
[1732132863246,0.41690408,93976.0,93966.0,0.00010527]
[1732132863247,0.053148,93967.0,93966.0,0.00010527]
[1732132863435,0.09102599,93967.0,93966.0,0.05325427]
[1732132863743,0.03787799,93967.0,93966.0,0.05325427]
[1732132864138,0.09102599,93967.0,93966.0,0.05325427]
[1732132864647,0.09102599,93967.0,93966.0,0.00010527]
[1732132865042,0.09766951,93967.0,93966.0,0.00010527]
[1732132865237,0.41694951,93967.0,93966.0,0.00010527]
[1732132865646,0.09766951,93967.0,93966.0,0.05325427]
[1732132866737,0.04452151,93967.0,93966.0,0.05325427]
[1732132867947,0.40532151,93967.0,93966.0,0.05325427]
[1732132868541,0.40532151,93967.0,93966.0,0.07402992]
[1732132869244,0.42175904,93967.0,93966.0,0.07402992]
[1732132869449,0.40532151,93967.0,93966.0,0.07402992]
[1732132869849,0.40532151,93967.0,93966.0,1.55325427]
[1732132870154,0.45846951,93967.0,93966.0,0.05325427]
[1732132870345,0.40532151,93967.0,93966.0,0.05325427]
[1732132870941,0.04452151,93967.0,93966.0,0.15508346]
[1732132871150,0.01107456,93971.0,93966.0,0.15508346]
[1732132871340,0.3608,93976.0,93975.0,0.053144]
[1732132871545,0.3608,93976.0,93975.0,0.15497319]
[1732132871947,8.842e-05,93982.0,93981.0,0.053141]
[1732132872989,8.842e-05,93982.0,93981.0,1.553141]
[1732132873464,0.3608,93999.0,93998.0,0.053131]
[1732132874464,0.3608,93999.0,93998.0,0.15496019]
[1732132875645,0.36208,94008.0,94007.0,0.05312]
[1732132875844,0.3608,94008.0,94007.0,0.05312]
[1732132877249,0.00119,94014.0,94006.0,0.0324]
[1732132877456,0.00119,94014.0,94013.0,0.053117]
[1732132877757,0.00119,94014.0,94006.0,0.0324]
[1732132878442,0.00119,94014.0,94013.0,0.053117]
[1732132879045,0.00119,94014.0,94013.0,0.119017]
[1732132879254,0.00783011,94014.0,94013.0,0.119017]
[1732132879556,0.02433414,94014.0,94013.0,0.119017]
[1732132879747,0.00783011,94014.0,94013.0,0.119017]
[1732132880651,0.0165031,94020.0,94018.0,0.053114]
[1732132880846,0.0165031,94027.0,94019.0,0.57598919]
[1732132881046,0.0165031,94027.0,94026.0,0.10182919]
[1732132881249,0.02195137,94027.0,94026.0,0.10182919]
[1732132881840,0.02195137,94027.0,94026.0,0.15493919]
[1732132882965,0.005,94042.0,94040.0,0.053102]
[1732132883178,0.01495737,94043.0,94042.0,0.053101]
[1732132883484,0.02855587,94043.0,94042.0,0.166461]
[1732132883684,0.02855587,94043.0,94042.0,1.666461]
[1732132887281,0.02855587,94043.0,94042.0,1.553101]
[1732132887472,0.02855587,94043.0,94042.0,0.07403894]
[1732132887677,0.02855587,94043.0,94042.0,0.13429794]
[1732132887979,0.06015587,94043.0,94038.0,0.21518919]
[1732132888177,0.0135985,94042.0,94038.0,0.21518919]
[1732132888385,0.0135985,94041.0,94040.0,0.053102]
[1732132891204,0.0135985,94041.0,94040.0,1.553102]
[1732132891489,0.01353539,94041.0,94040.0,1.553102]
[1732132892990,0.01495737,94043.0,94042.0,0.053106]
[1732132893593,0.03677319,94043.0,94042.0,1.553106]
[1732132893774,0.01495737,94043.0,94042.0,1.553106]
[1732132894378,0.03667987,94043.0,94042.0,1.553106]
[1732132897474,0.04331741,94043.0,94042.0,1.553106]
[1732132899362,0.09331741,94043.0,94042.0,0.166426]
[1732132900069,0.10972437,94043.0,94042.0,0.166426]
[1732132900274,0.09331741,94043.0,94042.0,0.166426]
[1732132901276,0.06495737,94043.0,94042.0,0.166426]
[1732132901675,0.09392358,94043.0,94042.0,0.166426]
[1732132902172,0.01471482,94055.0,94047.0,0.053105]
[1732132902364,0.01343482,94055.0,94047.0,0.51573419]
[1732132902674,0.01343482,94055.0,94052.0,0.053103]
[1732132902975,0.01343482,94055.0,94052.0,0.15493219]
[1732132903161,0.01343482,94055.0,94053.0,0.053102]
[1732132903658,0.01714173,94061.0,94055.0,0.053104]
[1732132903867,0.01714173,94061.0,94056.0,0.166424]
[1732132904958,0.0437795,94057.0,94056.0,0.166424]
[1732132906273,0.03017821,94066.0,94065.0,0.053098]
[1732132906477,0.03017821,94066.0,94065.0,0.49183736]
[1732132906772,0.03017821,94066.0,94065.0,1.63103736]
[1732132906973,0.03017821,94066.0,94065.0,1.74435736]
[1732132908169,0.04669807,94066.0,94065.0,1.74435736]
[1732132908473,0.03017821,94066.0,94065.0,1.74435736]
[1732132908877,0.0467054,94066.0,94065.0,1.74435736]
[1732132909378,0.03017821,94066.0,94065.0,1.74435736]
[1732132909584,0.03017821,94066.0,94065.0,1.76454914]
[1732132909784,0.03017821,94066.0,94065.0,1.65122914]
[1732132910278,0.03017821,94066.0,94065.0,1.66227995]
[1732132910279,0.08842586,94066.0,94065.0,1.66227995]
[1732132910473,0.44922586,94066.0,94065.0,1.74391736]
[1732132910671,0.44922586,94066.0,94065.0,0.10182919]
[1732132910977,0.44922586,94066.0,94064.0,0.00744]
[1732132910978,0.053098,94065.0,94064.0,0.00744]
[1732132911178,0.37716817,94065.0,94051.0,0.13360902]
[1732132911475,0.39229821,94066.0,94051.0,0.165986]
[1732132911476,0.3608,94052.0,94051.0,0.165986]
[1732132911677,0.41904889,94052.0,94051.0,0.165986]
[1732132911872,0.41905725,94052.0,94051.0,0.165986]
[1732132912064,0.41905725,94052.0,94051.0,0.053106]
[1732132912267,0.43944214,94052.0,94051.0,0.053106]
[1732132912468,0.43944214,94052.0,94051.0,0.15493519]
[1732132912678,0.38782269,94052.0,94051.0,0.15493519]
[1732132913068,0.19060668,94060.0,94051.0,0.25676438]
[1732132913380,0.19067649,94062.0,94061.0,0.10182919]
[1732132913577,0.39233821,94066.0,94063.0,0.053105]
[1732132913578,0.19067649,94064.0,94063.0,0.053105]
[1732132913766,0.39097821,94066.0,94065.0,0.053104]
[1732132913969,0.39225821,94066.0,94065.0,0.053104]
[1732132914168,0.053106,94062.0,94059.0,0.053107]
[1732132914369,0.053108,94057.0,94056.0,0.053109]
[1732132914570,0.59880371,94057.0,94056.0,0.053109]
[1732132915386,0.59880371,94057.0,94047.0,0.02025584]
[1732132915387,0.86465571,94057.0,94047.0,0.02025584]
[1732132915598,0.053116,94044.0,94041.0,0.053117]
[1732132915883,0.46262919,94042.0,94027.0,0.00159515]
[1732132916072,0.3608,94036.0,94027.0,0.00159515]
[1732132916272,0.85869237,94036.0,94035.0,0.05321193]
[1732132916474,0.67984,94036.0,94035.0,0.05321193]
[1732132916980,0.3608,94036.0,94035.0,0.05321193]
[1732132917371,0.55128662,94036.0,94035.0,0.05321193]
[1732132917776,0.3608,94036.0,94035.0,0.05321193]
[1732132918168,0.37288853,94036.0,94035.0,0.05321193]
[1732132918573,0.40568853,94036.0,94035.0,0.05321193]
[1732132920785,0.40568853,94036.0,94035.0,9.093e-05]
[1732132921000,0.70568853,94036.0,94017.0,0.005]
[1732132921168,0.70568853,94036.0,94017.0,0.053131]
[1732132921169,0.82342919,94018.0,94017.0,0.053131]
[1732132921479,0.8421583,94018.0,94017.0,0.053131]
[1732132922074,0.84224923,94018.0,94017.0,0.053131]
[1732132922382,0.053133,94014.0,94001.0,1.5]
[1732132922680,0.3608,94002.0,94001.0,0.053135]
[1732132922888,0.37952911,94002.0,93992.0,0.11292]
[1732132923087,0.37952911,94002.0,93992.0,0.05314]
[1732132923088,0.3608,93993.0,93992.0,0.05314]
[1732132923276,0.39892218,93993.0,93992.0,0.05314]
[1732132923473,0.39228013,93993.0,93992.0,0.05314]
[1732132925784,0.37290774,93993.0,93992.0,0.05314]
[1732132926086,0.00128,94002.0,94001.0,0.053135]
[1732132926277,9.093e-05,94018.0,94017.0,0.053126]
[1732132926476,0.0193429,94018.0,94017.0,0.053126]
[1732132927182,9.093e-05,94018.0,94017.0,0.053126]
[1732132927381,0.01917797,94018.0,94017.0,0.053126]
[1732132928073,9.093e-05,94018.0,94017.0,0.053126]
[1732132929085,9.093e-05,94018.0,94017.0,0.083326]
[1732132929283,9.093e-05,94018.0,94017.0,0.444126]
[1732132932686,9.3e-07,94018.0,94017.0,0.763206]
[1732132932886,9.3e-07,94018.0,94017.0,1.063206]
[1732132933686,9.3e-07,94018.0,94017.0,2.563206]
[1732132934083,9.3e-07,94018.0,94017.0,2.572206]
[1732132934389,9.3e-07,94018.0,94017.0,1.953126]
[1732132934591,9.3e-07,94018.0,94017.0,2.066046]
[1732132935580,9.3e-07,94018.0,94017.0,2.035846]
[1732132935889,9.3e-07,94018.0,94017.0,1.675046]
[1732132936580,9.3e-07,94018.0,94017.0,0.184046]
[1732132937185,9.3e-07,94018.0,94017.0,0.175046]
[1732132937387,9.3e-07,94018.0,94017.0,0.184046]
[1732132937891,9.3e-07,94018.0,94017.0,0.166046]
[1732132938868,9.3e-07,94018.0,94017.0,0.053126]
[1732132939079,9.3e-07,94018.0,94017.0,0.165646]
[1732132939282,9.3e-07,94018.0,94017.0,0.526446]
[1732132939684,9.3e-07,94018.0,94017.0,0.845526]
[1732132939889,0.005,94035.0,94034.0,0.053116]
[1732132940077,0.02124572,94046.0,94045.0,0.05311]
[1732132940283,0.3608,94054.0,94049.0,0.053107]
[1732132940482,0.01368754,94050.0,94049.0,0.053107]
[1732132940880,0.00159602,94050.0,94049.0,0.053107]
[1732132941182,0.3608,94054.0,94053.0,0.053105]
[1732132941373,0.3728383,94054.0,94053.0,0.053105]
[1732132943315,0.0120383,94054.0,94053.0,0.053105]
[1732132944940,0.08455859,94054.0,94053.0,0.053105]
[1732132945307,0.44535859,94054.0,94053.0,0.053105]
[1732132945505,0.44535859,94054.0,94050.0,0.053107]
[1732132945506,0.053107,94051.0,94050.0,0.053107]
[1732132945713,0.08456137,94051.0,94050.0,0.053107]
[1732132946213,0.06522802,94051.0,94050.0,0.053107]
[1732132946408,0.08462166,94051.0,94050.0,0.053107]
[1732132948022,0.03151466,94051.0,94050.0,0.053107]
[1732132949627,0.07337622,94052.0,94051.0,0.053106]
[1732132950522,0.07337622,94052.0,94043.0,0.3608]
[1732132950523,0.05311,94044.0,94043.0,0.3608]
[1732132950813,0.053113,94039.0,94038.0,0.053113]
[1732132951004,0.0327,94043.0,94032.0,0.11248]
[1732132951203,0.0327,94043.0,94034.0,0.053116]
[1732132951204,0.053116,94035.0,94034.0,0.053116]
[1732132951415,0.053117,94032.0,94031.0,0.02079522]
[1732132951716,0.053117,94032.0,94031.0,0.07391322]
[1732132952315,0.053117,94032.0,94031.0,0.053118]
[1732132953804,0.0301,94034.0,94033.0,0.053116]
[1732132954002,0.083216,94034.0,94033.0,0.053116]
[1732132955223,0.0301,94034.0,94028.0,0.00574]
[1732132955415,0.053119,94029.0,94028.0,0.00574]
[1732132955611,0.053128,94012.0,94011.0,0.005]
[1732132955806,0.053129,94011.0,94010.0,0.053129]
[1732132956009,0.3608,94014.0,94000.0,0.053135]
[1732132956217,0.3608,94014.0,94001.0,0.053134]
[1732132956218,0.053136,94002.0,94001.0,0.053134]
[1732132956422,0.3608,94003.0,93994.0,0.005]
[1732132956752,0.053137,93997.0,93995.0,0.053138]
[1732132957020,0.053136,93998.0,93997.0,0.053137]
[1732132957910,0.08535089,93998.0,93997.0,0.053137]
[1732132959025,0.05314,93993.0,93992.0,0.053139]
[1732132959205,0.08535489,93993.0,93992.0,0.053139]
[1732132959451,0.06553034,93993.0,93992.0,0.053139]
[1732132959602,0.06552934,93993.0,93992.0,0.053139]
[1732132960008,0.03229643,93993.0,93992.0,0.053139]
[1732132960312,0.03229643,93993.0,93982.0,0.00010626]
[1732132960313,0.3608,93993.0,93982.0,0.00010626]
[1732132960515,0.413945,93984.0,93982.0,0.00010626]
[1732132960700,0.03234739,93983.0,93982.0,0.05325126]
[1732132963787,0.3608,93984.0,93982.0,0.05325126]
[1732132964188,0.03253911,93983.0,93982.0,0.05325126]
[1732132964393,0.01251504,93983.0,93982.0,0.05325126]
[1732132965499,0.03255701,93983.0,93982.0,0.05325126]
[1732132966192,0.01251504,93983.0,93982.0,0.05325126]
[1732132967198,0.03270656,93983.0,93982.0,0.00010626]
[1732132967501,0.08584636,93983.0,93982.0,0.00010626]
[1732132968992,0.053145,93983.0,93982.0,0.00010626]
[1732132969396,0.07360696,93983.0,93982.0,0.05325126]
[1732132969592,0.02046196,93983.0,93982.0,0.05325126]
[1732132969905,0.36208,93984.0,93983.0,0.053145]
[1732132970108,0.3608,93984.0,93983.0,0.053145]
[1732132970402,0.37331039,93984.0,93983.0,0.053145]
[1732132970992,0.01251039,93984.0,93983.0,0.053145]
[1732132972601,0.3608,93993.0,93982.0,0.21409545]
[1732132972795,0.3608,93993.0,93992.0,0.05314]
[1732132972995,0.37317577,93993.0,93992.0,0.05314]
[1732132973699,0.36216,94003.0,93990.0,0.10182919]
[1732132973907,0.053135,94002.0,94000.0,0.053135]
[1732132974198,0.01233257,94001.0,94000.0,0.053135]
[1732132975001,0.03202941,94001.0,94000.0,0.053135]
[1732132975404,0.03204444,94001.0,94000.0,0.053135]
[1732132976095,0.01233257,94001.0,94000.0,0.053135]
[1732132976893,0.36208,94003.0,93995.0,0.02075844]
[1732132977101,0.3608,94003.0,94002.0,0.053134]
[1732132977406,0.053144,93985.0,93984.0,0.058144]
[1732132977607,0.1672446,93985.0,93984.0,0.053144]
[1732132977900,0.01227141,93985.0,93984.0,0.053144]
[1732132980503,0.3608,93993.0,93981.0,0.053146]
[1732132981008,0.3608,93993.0,93980.0,0.02104798]